bitfinex/quotes_BTCUSD_20251104
["timestamp","ask_amount","ask_price","bid_price","bid_amount"]
[1762297298616,0.19735543,101340.0,101320.0,0.04991]
[1762297298822,0.19737491,101330.0,101320.0,0.34]
[1762297299001,0.19739439,101320.0,101310.0,0.0454]
[1762297299201,0.19737491,101330.0,101300.0,0.88763368]
[1762297299401,0.19739439,101320.0,101300.0,0.88763368]
[1762297299609,0.19739439,101320.0,101300.0,0.88463368]
[1762297299813,0.19737491,101330.0,101310.0,0.19741387]
[1762297300585,0.20770605,101340.0,101320.0,0.21429439]
[1762297301196,0.19737491,101330.0,101320.0,0.21429439]
[1762297301418,0.19737491,101330.0,101320.0,0.0169]
[1762297301630,0.19737491,101330.0,101320.0,0.21429439]
[1762297301966,0.19783828,101340.0,101320.0,0.32105761]
[1762297302172,0.00048285,101340.0,101330.0,0.87960361]
[1762297302376,0.00048285,101340.0,101330.0,1.0222287]
[1762297302575,0.00048285,101340.0,101330.0,1.21960361]
[1762297302761,0.00048285,101340.0,101330.0,1.28334809]
[1762297303257,0.00048285,101340.0,101330.0,0.65946238]
[1762297303455,0.00048285,101340.0,101330.0,0.0244]
[1762297303678,0.00048285,101340.0,101330.0,0.9888887]
[1762297303859,0.00048285,101340.0,101330.0,1.18626361]
[1762297304056,0.00048285,101340.0,101330.0,1.19126361]
[1762297304258,0.00048285,101340.0,101330.0,0.56377491]
[1762297304576,0.00048285,101340.0,101330.0,1.22460361]
[1762297304782,0.00048285,101340.0,101330.0,0.59711491]
[1762297304980,0.00203582,101340.0,101330.0,0.59711491]
[1762297305173,0.00203582,101340.0,101330.0,1.22460361]
[1762297305363,0.00203582,101340.0,101330.0,1.21960361]
[1762297305568,0.20422375,101360.0,101340.0,0.19735108]
[1762297305768,0.00014478,101360.0,101350.0,0.19733596]
[1762297306222,0.00014478,101360.0,101350.0,0.25207596]
[1762297306404,0.19746127,101360.0,101340.0,0.23069108]
[1762297306601,0.19746127,101360.0,101340.0,0.85817978]
[1762297306805,0.19746127,101360.0,101340.0,0.3160543]
[1762297307012,0.19746127,101360.0,101350.0,0.19933596]
[1762297307246,0.19746127,101360.0,101340.0,0.3160543]
[1762297307446,0.19746127,101360.0,101340.0,0.943543]
[1762297307858,0.19746127,101360.0,101350.0,0.19733596]
[1762297308185,0.19746127,101360.0,101340.0,0.943543]
[1762297308603,0.19746127,101360.0,101350.0,0.19733596]
[1762297308822,0.19746127,101360.0,101340.0,0.3614943]
[1762297309025,0.19746127,101360.0,101340.0,0.988983]
[1762297309229,0.19746127,101360.0,101350.0,0.002]
[1762297311520,0.19733596,101350.0,101340.0,0.6274887]
[1762297311656,0.19733596,101350.0,101330.0,1.20807165]
[1762297312038,0.19733596,101350.0,101340.0,0.19735543]
[1762297312439,0.00025031,101350.0,101340.0,0.21875543]
[1762297312658,0.00025031,101350.0,101340.0,1.30494735]
[1762297314153,0.19758627,101350.0,101340.0,0.39474]
[1762297314367,0.19758627,101350.0,101340.0,0.3614]
[1762297314591,0.19758627,101350.0,101340.0,0.3634]
[1762297314800,0.19758627,101350.0,101340.0,0.56075543]
[1762297315008,0.19758627,101350.0,101340.0,0.3634]
[1762297315528,0.19758627,101350.0,101340.0,0.56075543]
[1762297315733,0.19758627,101350.0,101340.0,0.342]
[1762297316252,0.19758627,101350.0,101340.0,1.16684413]
[1762297316709,0.00025031,101350.0,101340.0,0.53935543]
[1762297316907,0.19758627,101350.0,101340.0,0.53935543]
[1762297317245,0.19758627,101350.0,101340.0,0.56075543]
[1762297317613,0.19758627,101350.0,101340.0,0.59409543]
[1762297318010,0.19758627,101350.0,101340.0,0.3634]
[1762297318210,0.19758627,101350.0,101340.0,0.59409543]
[1762297318466,0.19758627,101350.0,101340.0,0.3634]
[1762297318755,0.00025031,101350.0,101340.0,0.56075543]
[1762297318953,0.00014478,101360.0,101350.0,0.53733596]
[1762297319165,0.0004,101370.0,101360.0,0.19731649]
[1762297319365,0.0004,101370.0,101360.0,1.92213852]
[1762297319567,0.0004,101370.0,101360.0,1.93095736]
[1762297319720,0.0004,101370.0,101360.0,0.72872068]
[1762297319921,0.0004,101370.0,101360.0,1.35620938]
[1762297320163,0.0004,101370.0,101360.0,1.98369808]
[1762297320375,0.0004,101370.0,101360.0,2.01988036]
[1762297320725,0.0004,101370.0,101360.0,1.98479988]
[1762297320930,0.0002,101380.0,101370.0,0.57347931]
[1762297321127,0.0002,101380.0,101370.0,1.44955753]
[1762297321349,0.0002,101400.0,101390.0,0.53725811]
[1762297321557,0.19722023,101410.0,101400.0,0.34]
[1762297321754,0.19723865,101400.0,101380.0,0.06164824]
[1762297321990,0.19725811,101390.0,101380.0,0.37753938]
[1762297322403,0.19725811,101390.0,101380.0,0.43227938]
[1762297322655,0.19725811,101390.0,101380.0,0.39893938]
[1762297322849,0.19723865,101400.0,101380.0,0.59201756]
[1762297323007,0.19723865,101400.0,101390.0,0.23555811]
[1762297323206,0.20722578,101410.0,101390.0,0.26889811]
[1762297323399,0.19723865,101400.0,101390.0,0.0169]
[1762297323603,0.19725811,101390.0,101380.0,0.37334]
[1762297323844,0.19725811,101390.0,101380.0,0.9674887]
[1762297324064,0.19725811,101390.0,101380.0,0.341]
[1762297324266,0.19725811,101390.0,101380.0,0.34]
[1762297324607,0.19727756,101380.0,101370.0,0.08855496]
[1762297324811,0.19802842,101380.0,101370.0,0.06214]
[1762297325281,0.19729703,101370.0,101360.0,0.39975496]
[1762297325495,0.19729703,101370.0,101360.0,0.34]
[1762297325722,0.19729703,101370.0,101350.0,0.99177969]
[1762297325991,0.19729703,101370.0,101350.0,0.31918978]
[1762297326231,0.19729703,101370.0,101360.0,0.34]
[1762297327209,0.19729703,101370.0,101350.0,0.92026233]
[1762297327440,0.19729703,101370.0,101360.0,0.53831649]
[1762297327659,0.20714143,101380.0,101360.0,0.55871649]
[1762297327871,0.19729703,101370.0,101360.0,0.59205649]
[1762297328066,0.19729703,101370.0,101360.0,0.34]
[1762297328470,0.19729703,101370.0,101360.0,0.39474]
[1762297328894,0.19729703,101370.0,101360.0,0.59205649]
[1762297329097,0.19729703,101370.0,101360.0,1.21954519]
[1762297329405,0.20714143,101380.0,101370.0,0.19729703]
[1762297329703,0.20714143,101380.0,101370.0,0.21419703]
[1762297330049,0.20714143,101380.0,101370.0,0.0169]
[1762297330447,0.19729703,101370.0,101360.0,0.34]
[1762297330852,0.19779765,101370.0,101360.0,0.34]
[1762297331240,0.19779765,101370.0,101350.0,0.0621]
[1762297331555,0.19731649,101360.0,101350.0,0.4021]
[1762297331770,0.19731649,101360.0,101350.0,0.59943596]
[1762297331998,0.19731649,101360.0,101350.0,0.4021]
[1762297332200,0.19731649,101360.0,101350.0,1.0522187]
[1762297332329,0.19731649,101360.0,101350.0,0.42473]
[1762297332524,0.19731649,101360.0,101340.0,0.02641496]
[1762297332525,0.19733596,101350.0,101340.0,0.02641496]
[1762297332786,0.20760575,101350.0,101340.0,0.00014478]
[1762297333503,2.20760575,101350.0,101340.0,0.00014478]
[1762297333657,2.83509445,101350.0,101340.0,0.00014478]
[1762297333858,2.93465142,101350.0,101340.0,0.00014478]
[1762297334055,0.19737491,101330.0,101320.0,0.5]
[1762297334260,2.91037126,101330.0,101320.0,0.5]
[1762297335063,3.28655354,101330.0,101320.0,0.5]
[1762297335271,0.19745285,101290.0,101270.0,0.95749071]
[1762297335471,0.19745285,101290.0,101280.0,0.34]
[1762297335680,0.19745285,101290.0,101280.0,0.19747235]
[1762297336088,0.19743336,101300.0,101280.0,0.19747235]
[1762297336274,0.19745285,101290.0,101280.0,0.34]
[1762297336598,0.19745285,101290.0,101260.0,0.01832468]
[1762297336599,0.19747235,101280.0,101260.0,0.01832468]
[1762297336799,0.19749185,101270.0,101260.0,0.01832468]
[1762297337001,0.19749185,101270.0,101260.0,0.35832468]
[1762297337175,0.19749185,101270.0,101260.0,0.01832468]
[1762297337607,0.25100743,101270.0,101260.0,0.32412]
[1762297337804,2.19751135,101260.0,101250.0,0.0004]
[1762297338181,2.82500005,101260.0,101250.0,0.00062563]
[1762297338390,2.19751135,101260.0,101250.0,0.00062563]
[1762297338593,0.25100743,101270.0,101250.0,0.00062563]
[1762297338794,0.19749185,101270.0,101250.0,0.62811433]
[1762297339007,0.19749185,101270.0,101250.0,0.19815453]
[1762297339214,0.19751135,101260.0,101250.0,0.00062563]
[1762297339962,0.20051135,101260.0,101250.0,0.00062563]
[1762297340099,0.003,101260.0,101250.0,1.30602841]
[1762297340317,0.19747235,101280.0,101270.0,0.19748969]
[1762297340532,0.19747235,101280.0,101270.0,0.82498055]
[1762297340751,0.00014435,101290.0,101270.0,0.6825087]
[1762297340987,0.1973825,101330.0,101300.0,0.19742729]
[1762297341212,0.20739583,101330.0,101300.0,0.02263]
[1762297341440,0.20739583,101330.0,101300.0,0.63168583]
[1762297341666,0.00014459,101330.0,101320.0,0.6659987]
[1762297341877,0.00014459,101330.0,101320.0,0.86339309]
[1762297342111,0.1975195,101330.0,101320.0,0.6433687]
[1762297342323,0.1975195,101330.0,101310.0,0.34]
[1762297342542,0.1975195,101330.0,101310.0,0.9674887]
[1762297342781,0.00014459,101330.0,101320.0,0.84076309]
[1762297343018,0.00014459,101330.0,101320.0,0.89578309]
[1762297343245,0.00014459,101330.0,101320.0,0.89938608]
[1762297343454,0.00014459,101330.0,101320.0,0.89578309]
[1762297343680,0.00014459,101330.0,101320.0,0.60829439]
[1762297343904,0.1975195,101330.0,101320.0,0.38051]
[1762297344110,0.1975195,101330.0,101320.0,0.35588]
[1762297344360,0.1975195,101330.0,101320.0,0.55327439]
[1762297344561,0.1975195,101330.0,101320.0,0.35888]
[1762297344738,0.21636578,101330.0,101320.0,0.35588]
[1762297344905,0.1975195,101330.0,101320.0,0.34]
[1762297345109,0.1975195,101330.0,101320.0,0.342]
[1762297345740,0.1975195,101330.0,101320.0,0.002]
[1762297346505,0.19739439,101320.0,101310.0,0.34]
[1762297347341,0.19741387,101310.0,101300.0,1.22620206]
[1762297347488,0.19739439,101320.0,101300.0,1.22620206]
[1762297347899,0.19739439,101320.0,101300.0,0.59871336]
[1762297348098,0.19739439,101320.0,101300.0,1.22620206]
[1762297348502,0.19739439,101320.0,101300.0,1.25859206]
[1762297348709,0.19739439,101320.0,101310.0,0.19741387]
[1762297348931,0.07739439,101320.0,101310.0,0.19741387]
[1762297350115,0.07739439,101320.0,101300.0,1.25859206]
[1762297350606,0.20738824,101330.0,101310.0,0.28277709]
[1762297350740,0.00014459,101330.0,101320.0,0.23590439]
[1762297350939,0.00014459,101330.0,101320.0,0.89578309]
[1762297351771,0.00014459,101330.0,101320.0,0.26829439]
[1762297351951,0.00014459,101330.0,101320.0,0.95125054]
[1762297352345,0.00014459,101330.0,101320.0,1.17288155]
[1762297353259,0.00014459,101330.0,101320.0,1.21812155]
[1762297353481,0.00014459,101330.0,101320.0,1.56172454]
[1762297353858,0.00014459,101330.0,101320.0,1.5056541]
[1762297354128,0.1975195,101330.0,101320.0,0.08675]
[1762297354273,0.1975195,101330.0,101320.0,0.01888]
[1762297354521,0.1975195,101330.0,101320.0,0.003]
[1762297354895,0.1975195,101330.0,101320.0,0.01961]
[1762297355098,0.23700723,101330.0,101320.0,0.01961]
[1762297355474,0.1975195,101330.0,101320.0,0.01961]
[1762297356143,0.00014459,101330.0,101320.0,0.23854439]
[1762297356344,0.00014459,101330.0,101320.0,0.27161439]
[1762297356345,0.1975195,101330.0,101320.0,0.27161439]
[1762297356540,0.00014459,101330.0,101320.0,0.26861439]
[1762297356815,0.00014459,101330.0,101320.0,1.1197341]
[1762297357252,0.00014459,101330.0,101320.0,0.27061439]
[1762297357428,0.00014459,101330.0,101320.0,1.4597341]
[1762297357631,0.00014459,101330.0,101320.0,1.4577341]
[1762297357849,0.00014459,101330.0,101320.0,1.4607341]
[1762297358115,0.00014459,101330.0,101320.0,1.4805141]
[1762297358351,0.00014459,101330.0,101320.0,1.4607341]
[1762297359368,0.00014459,101330.0,101320.0,0.61161439]
[1762297359581,0.1975195,101330.0,101320.0,0.61161439]
[1762297359918,0.1975195,101330.0,101320.0,0.38115]
[1762297360567,0.1975195,101330.0,101320.0,0.04115]
[1762297360772,0.1975195,101330.0,101320.0,0.03815]
[1762297360975,0.1975195,101330.0,101320.0,0.23754439]
[1762297361830,0.00014459,101330.0,101320.0,0.26941439]
[1762297361964,0.1975195,101330.0,101320.0,0.26941439]
[1762297362384,0.1975195,101330.0,101320.0,0.04015]
[1762297362668,0.1975195,101330.0,101320.0,0.23754439]
[1762297362865,0.1975195,101330.0,101320.0,0.26941439]
[1762297363361,0.00014459,101330.0,101320.0,0.26941439]
[1762297364801,0.1975195,101330.0,101320.0,0.26941439]
[1762297365041,0.00014459,101330.0,101320.0,0.26941439]
[1762297365875,0.1975195,101330.0,101320.0,0.26941439]
[1762297366083,0.00014459,101330.0,101320.0,0.26941439]
[1762297366360,0.1975195,101330.0,101320.0,0.07202]
[1762297366743,0.1975195,101330.0,101320.0,0.04015]
[1762297367130,0.1975195,101330.0,101320.0,0.26941439]
[1762297367492,0.1975195,101330.0,101320.0,0.01861]
[1762297367634,0.23700731,101330.0,101320.0,0.01861]
[1762297367832,0.1975195,101330.0,101320.0,0.01861]
[1762297369619,0.1975195,101330.0,101320.0,0.002]
[1762297369830,3.04663921,101330.0,101320.0,0.002]
[1762297370038,2.1975195,101330.0,101320.0,0.002]
[1762297370248,2.29707647,101330.0,101320.0,0.002]
[1762297370458,0.19743336,101300.0,101290.0,0.05121328]
[1762297370678,0.19745285,101290.0,101280.0,0.087974]
[1762297370885,0.19745285,101290.0,101280.0,0.03523328]
[1762297371067,0.19745285,101290.0,101280.0,0.23270563]
[1762297371288,0.19745285,101290.0,101280.0,0.03523328]
[1762297371403,0.23694147,101290.0,101270.0,0.135824]
[1762297371613,0.19749185,101270.0,101260.0,0.148894]
[1762297371821,0.19749185,101270.0,101260.0,0.29414748]
[1762297372022,0.19747262,101280.0,101260.0,1.19714719]
[1762297372259,2.0,101280.0,101270.0,0.23548185]
[1762297372469,0.19747235,101280.0,101270.0,0.21347185]
[1762297372639,2.0,101280.0,101270.0,0.26735185]
[1762297372838,0.20730502,101300.0,101280.0,0.19747235]
[1762297373088,0.21721662,101320.0,101300.0,0.19743336]
[1762297373680,0.19741387,101310.0,101300.0,0.22930336]
[1762297373904,0.20728175,101320.0,101310.0,0.23540387]
[1762297374138,0.20728175,101320.0,101310.0,0.01598]
[1762297374371,0.20728175,101320.0,101310.0,0.21387672]
[1762297374612,0.21743104,101330.0,101320.0,0.19739439]
[1762297374876,0.19763611,101350.0,101320.0,0.21940439]
[1762297375145,0.19735576,101340.0,101330.0,0.01598]
[1762297375339,0.19739439,101320.0,101310.0,0.05169613]
[1762297375493,0.19739439,101320.0,101310.0,0.00048285]
[1762297375695,0.23687132,101320.0,101310.0,0.00048285]
[1762297375900,0.19739439,101320.0,101310.0,0.00048285]
[1762297376478,2.62275761,101320.0,101310.0,0.00048285]
[1762297376687,3.47187732,101320.0,101310.0,0.00048285]
[1762297377142,2.34,101320.0,101310.0,0.04047285]
[1762297377355,0.00022529,101350.0,101310.0,1.5336885]
[1762297377557,0.00022529,101350.0,101340.0,0.88163971]
[1762297377765,0.05116529,101350.0,101340.0,0.34]
[1762297378094,0.27051203,101350.0,101330.0,0.37523328]
[1762297378242,0.27051245,101350.0,101320.0,0.29523319]
[1762297378450,0.03491,101340.0,101320.0,0.24249247]
[1762297378628,0.03491,101340.0,101330.0,0.19737491]
[1762297378831,0.21359176,101350.0,101320.0,0.24249247]
[1762297379073,0.03491,101340.0,101330.0,0.19737491]
[1762297379406,0.05692,101340.0,101330.0,0.19737491]
[1762297379753,0.25427543,101340.0,101330.0,0.19937491]
[1762297380088,0.21936543,101340.0,101330.0,0.002]
[1762297380227,0.05692,101340.0,101330.0,0.19937491]
[1762297380427,0.25427543,101340.0,101330.0,0.002]
[1762297380626,0.05692,101340.0,101330.0,0.19937491]
[1762297380836,0.01625529,101350.0,101340.0,0.19735543]
[1762297381046,0.01625529,101350.0,101330.0,1.13518089]
[1762297381047,0.01158529,101350.0,101330.0,1.13518089]
[1762297381296,0.01158529,101350.0,101340.0,0.19735543]
[1762297381715,0.03359529,101350.0,101340.0,0.19735543]
[1762297382139,0.19735543,101340.0,101330.0,0.01598]
[1762297382445,0.21936543,101340.0,101320.0,0.24249247]
[1762297382729,0.21936543,101340.0,101330.0,0.19737491]
[1762297382730,0.02201,101340.0,101330.0,0.19737491]
[1762297382957,0.21936543,101340.0,101330.0,0.19737491]
[1762297383260,0.02201,101340.0,101330.0,0.19737491]
[1762297383479,0.21878804,101350.0,101330.0,0.22989491]
[1762297383690,0.20892125,101350.0,101330.0,1.19624784]
[1762297383890,0.24383125,101350.0,101340.0,0.19735543]
[1762297384095,0.19735543,101340.0,101330.0,0.01051]
[1762297384350,0.2983941,101340.0,101320.0,0.03523328]
[1762297384563,0.19739439,101320.0,101310.0,0.00048285]
[1762297384785,0.21940439,101320.0,101310.0,0.00048285]
[1762297384983,3.1034341,101320.0,101310.0,0.00048285]
[1762297385183,3.54299107,101320.0,101310.0,0.00048285]
[1762297385392,3.57917335,101320.0,101310.0,0.00048285]
[1762297385616,3.57917335,101320.0,101270.0,0.01598]
[1762297385617,0.19747235,101280.0,101270.0,0.01598]
[1762297385823,0.19751135,101260.0,101250.0,0.10457963]
[1762297386025,0.20926135,101260.0,101250.0,0.00076998]
[1762297386243,0.26618135,101260.0,101250.0,0.00076998]
[1762297386451,0.31254867,101260.0,101250.0,0.00076998]
[1762297387160,0.01175,101260.0,101250.0,0.00076998]
[1762297387374,0.20926135,101260.0,101250.0,0.00076998]
[1762297387575,0.01175,101260.0,101250.0,0.19830084]
[1762297387778,0.20926135,101260.0,101250.0,0.00076998]
[1762297387982,0.24417135,101260.0,101250.0,0.00076998]
[1762297388207,0.01175,101260.0,101250.0,0.19830084]
[1762297388414,0.03618228,101300.0,101260.0,0.19750571]
[1762297388642,0.20726431,101320.0,101300.0,0.19743195]
[1762297388867,0.19739553,101320.0,101300.0,0.53743156]
[1762297389311,0.2323048,101320.0,101300.0,0.53743156]
[1762297389517,0.21340491,101330.0,101310.0,0.28277709]
[1762297389720,0.19739439,101320.0,101310.0,0.19741387]
[1762297389922,0.29435971,101330.0,101310.0,0.19741387]
[1762297390129,0.29435971,101330.0,101320.0,0.20897281]
[1762297390130,0.00048246,101330.0,101320.0,0.20897281]
[1762297390330,0.19785737,101330.0,101310.0,0.22928387]
[1762297390554,0.19785737,101330.0,101320.0,0.19739439]
[1762297390773,0.00048246,101330.0,101320.0,0.19739439]
[1762297391207,0.19785737,101330.0,101320.0,0.19739439]
[1762297391434,0.19785737,101330.0,101310.0,0.28277709]
[1762297391657,0.25214439,101320.0,101310.0,0.34]
[1762297392021,0.19741387,101310.0,101300.0,0.34]
[1762297392103,0.19741387,101310.0,101280.0,0.24019191]
[1762297392104,0.19743336,101300.0,101280.0,0.24019191]
[1762297392325,0.21179336,101300.0,101290.0,0.34]
[1762297392726,0.01436,101300.0,101290.0,0.53745285]
[1762297392949,0.19743336,101300.0,101290.0,0.34]
[1762297393171,0.19943336,101300.0,101290.0,0.34]
[1762297394260,0.002,101300.0,101290.0,0.55159285]
[1762297394520,0.20728456,101310.0,101290.0,0.55159285]
[1762297394772,0.20728456,101310.0,101300.0,0.19743336]
[1762297395015,0.19743336,101300.0,101290.0,0.55159285]
[1762297395258,0.19743336,101300.0,101290.0,0.34]
[1762297395518,0.19843336,101300.0,101290.0,0.34]
[1762297395815,0.19843336,101300.0,101270.0,0.01618]
[1762297395816,0.19747235,101280.0,101270.0,0.01618]
[1762297396015,0.19746988,101290.0,101270.0,0.29903507]
[1762297396246,0.19747235,101280.0,101270.0,0.01618]
[1762297396461,0.23928502,101300.0,101280.0,0.19747235]
[1762297396683,0.19745285,101290.0,101280.0,0.19747235]
[1762297396900,0.19745285,101290.0,101280.0,0.53747235]
[1762297397136,0.19793472,101290.0,101280.0,0.53747235]
[1762297397351,0.00048187,101290.0,101280.0,0.53747235]
[1762297397994,0.00048187,101290.0,101280.0,0.59130235]
[1762297398444,0.00148187,101290.0,101280.0,0.59130235]
[1762297400420,0.00148187,101290.0,101280.0,0.59490534]
[1762297401835,0.00148187,101290.0,101280.0,0.62138741]
[1762297403322,0.00148187,101290.0,101280.0,0.65662069]
[1762297403727,0.00048187,101290.0,101280.0,0.65662069]
[1762297404134,0.00048187,101290.0,101280.0,0.65762069]
[1762297405442,0.00048187,101290.0,101280.0,0.72006162]
[1762297406026,0.00048187,101290.0,101280.0,0.72853162]
[1762297406874,0.00048187,101290.0,101280.0,0.63600563]
[1762297407029,0.00048187,101290.0,101280.0,0.66250135]
[1762297407844,0.19793472,101290.0,101280.0,0.464029]
[1762297408050,0.21396472,101290.0,101280.0,0.03496572]
[1762297408348,0.21396472,101290.0,101280.0,0.00847]
[1762297408552,0.21396472,101290.0,101270.0,0.40616407]
[1762297408760,0.21396472,101290.0,101280.0,0.19747235]
[1762297409138,0.01651187,101290.0,101280.0,0.53747235]
[1762297409353,0.00048187,101290.0,101280.0,0.59130235]
[1762297409542,0.00048187,101290.0,101280.0,0.62140106]
[1762297410129,0.00148187,101290.0,101280.0,0.62140106]
[1762297410313,0.00148187,101290.0,101280.0,1.50627866]
[1762297410514,0.00048187,101290.0,101280.0,1.50627866]
[1762297410715,0.00048187,101290.0,101280.0,1.50727866]
[1762297411191,0.00048187,101290.0,101280.0,1.54346094]
[1762297411795,0.00048187,101290.0,101280.0,1.51696522]
[1762297412041,0.00048187,101290.0,101280.0,1.71920594]
[1762297413225,0.00048187,101290.0,101280.0,0.86956162]
[1762297413402,0.00048187,101290.0,101280.0,1.71920594]
[1762297413905,0.00048187,101290.0,101280.0,1.68397266]
[1762297414319,0.00048187,101290.0,101280.0,0.86972907]
[1762297414607,0.23366472,101290.0,101280.0,0.36755249]
[1762297415106,0.23366472,101290.0,101280.0,0.341]
[1762297415284,0.26387472,101290.0,101280.0,0.341]
[1762297415635,0.27375601,101290.0,101280.0,0.341]
[1762297416075,0.19747235,101280.0,101270.0,0.07813322]
[1762297416276,0.19749185,101270.0,101260.0,0.9414011]
[1762297416478,0.19749185,101270.0,101260.0,1.2504311]
[1762297416679,0.22768235,101280.0,101270.0,0.34]
[1762297417260,0.24893235,101280.0,101270.0,0.34]
[1762297418346,0.24893235,101280.0,101270.0,0.56404434]
[1762297418548,0.19747235,101280.0,101270.0,0.56404434]
[1762297418755,0.26537865,101290.0,101280.0,0.19747235]
[1762297418756,0.21241472,101290.0,101280.0,0.19747235]
[1762297418957,0.01496187,101290.0,101280.0,0.77718896]
[1762297419581,0.01496187,101290.0,101280.0,0.82573145]
[1762297420148,0.00048187,101290.0,101280.0,1.23210218]
[1762297421076,0.00048187,101290.0,101280.0,1.80620928]
[1762297421077,0.00148187,101290.0,101280.0,1.80620928]
[1762297421291,0.00148187,101290.0,101280.0,1.9055843]
[1762297421771,0.00148187,101290.0,101280.0,1.9655843]
[1762297421929,0.00048187,101290.0,101280.0,1.9655843]
[1762297422136,1e-08,101290.0,101280.0,1.98324172]
[1762297422333,0.19735994,101340.0,101320.0,0.19737033]
[1762297422642,0.19750453,101340.0,101320.0,0.83915002]
[1762297422825,0.19750453,101340.0,101330.0,0.57971661]
[1762297423147,0.19750453,101340.0,101330.0,0.19737491]
[1762297423357,0.19737491,101330.0,101320.0,1.22906237]
[1762297423496,0.19737491,101330.0,101320.0,1.14369915]
[1762297423694,0.24838453,101340.0,101320.0,1.19698915]
[1762297423695,0.00014459,101340.0,101320.0,1.19698915]
[1762297423907,0.00022529,101350.0,101340.0,0.19735543]
[1762297424118,0.00022529,101350.0,101340.0,1.75788392]
[1762297424338,0.00022529,101350.0,101340.0,1.28104905]
[1762297425196,0.00022529,101350.0,101340.0,1.27744606]
[1762297425330,0.00022529,101350.0,101340.0,0.70133244]
[1762297425529,0.00022529,101350.0,101340.0,1.36641227]
[1762297425738,0.00022529,101350.0,101340.0,1.34853666]
[1762297426320,0.00022529,101350.0,101340.0,0.76434132]
[1762297426497,0.00022529,101350.0,101340.0,0.58614719]
[1762297426717,0.00022529,101350.0,101340.0,1.25672526]
[1762297426899,0.00022529,101350.0,101340.0,1.28320702]
[1762297427045,0.00022529,101350.0,101340.0,1.1978438]
[1762297427244,0.00022529,101350.0,101340.0,1.1968438]
[1762297427450,0.00022529,101350.0,101340.0,1.32496174]
[1762297427672,0.00122529,101350.0,101340.0,1.26317344]
[1762297427887,0.25378266,101400.0,101380.0,0.19726475]
[1762297428086,0.25392722,101400.0,101380.0,0.21208475]
[1762297428289,2.21731811,101390.0,101370.0,0.35996299]
[1762297428508,0.19727756,101380.0,101370.0,0.34]
[1762297429290,0.19727756,101380.0,101370.0,0.53729703]
[1762297429504,0.19727756,101380.0,101360.0,0.29089926]
[1762297429505,0.25802143,101380.0,101350.0,0.06538077]
[1762297429705,0.21382649,101360.0,101340.0,0.25913148]
[1762297429874,0.21382649,101360.0,101340.0,0.77807031]
[1762297430212,0.19735543,101340.0,101330.0,0.06126]
[1762297430847,0.19735543,101340.0,101330.0,0.40126]
[1762297431002,0.19735543,101340.0,101330.0,0.59863491]
[1762297431202,0.25451231,101360.0,101330.0,1.1623701]
[1762297431441,0.19733596,101350.0,101340.0,0.19735543]
[1762297431846,0.19735543,101340.0,101330.0,1.1943501]
[1762297432024,0.19735543,101340.0,101330.0,1.1623701]
[1762297432236,0.19733596,101350.0,101330.0,1.2156601]
[1762297432987,0.25451231,101360.0,101340.0,0.77707204]
[1762297433195,0.2138276,101360.0,101350.0,0.57971661]
[1762297433321,0.2138276,101360.0,101350.0,0.77705257]
[1762297433521,0.20714143,101380.0,101350.0,0.77705257]
[1762297433522,0.37618228,101390.0,101350.0,0.81280257]
[1762297433729,0.0002,101420.0,101390.0,0.0098629]
[1762297433971,0.00068169,101420.0,101410.0,0.2134392]
[1762297434151,0.25862143,101420.0,101390.0,0.00360299]
[1762297434353,0.19721985,101410.0,101400.0,0.92203845]
[1762297434556,0.22803985,101410.0,101400.0,0.34]
[1762297434760,0.19725747,101400.0,101380.0,0.21363756]
[1762297435107,0.25796081,101410.0,101390.0,0.19725811]
[1762297435384,0.19723865,101400.0,101380.0,0.55363749]
[1762297435592,0.19723865,101400.0,101390.0,0.57971661]
[1762297435821,0.19723865,101400.0,101380.0,0.55363749]
[1762297435976,0.19725811,101390.0,101380.0,0.35636]
[1762297436183,0.19723865,101400.0,101380.0,1.13335417]
[1762297436502,0.19723865,101400.0,101390.0,0.57971661]
[1762297436695,0.20023865,101400.0,101390.0,0.57971661]
[1762297437452,0.19723865,101400.0,101380.0,0.55363756]
[1762297437684,0.23180811,101390.0,101370.0,0.04544]
[1762297437885,0.001,101390.0,101380.0,0.22925756]
[1762297438082,0.001,101390.0,101380.0,1.80614605]
[1762297438323,0.001,101390.0,101380.0,0.64671283]
[1762297438554,0.001,101390.0,101380.0,0.61053055]
[1762297438707,0.001,101390.0,101380.0,0.60692756]
[1762297438920,0.22804229,101410.0,101390.0,0.19723879]
[1762297439137,0.02403167,101420.0,101400.0,1.11695526]
[1762297439288,0.21137178,101420.0,101410.0,0.58596661]
[1762297439492,0.21137178,101420.0,101410.0,0.57971661]
[1762297439688,0.01417169,101420.0,101410.0,0.77693581]
[1762297439890,0.01417169,101420.0,101410.0,0.78318581]
[1762297440129,0.01417169,101420.0,101410.0,0.58596661]
[1762297440130,0.21137145,101420.0,101410.0,0.58596661]
[1762297440336,0.1972192,101410.0,101400.0,0.34]
[1762297440554,0.1972192,101410.0,101400.0,0.91971661]
[1762297440710,0.1972192,101410.0,101400.0,0.34]
[1762297440910,0.2480992,101410.0,101400.0,0.34]
[1762297441133,0.19723865,101400.0,101380.0,0.59607661]
[1762297441335,0.1972592,101390.0,101370.0,0.86237491]
[1762297441553,0.1972592,101390.0,101370.0,1.20237491]
[1762297441755,0.20708016,101410.0,101380.0,0.21858756]
[1762297441756,0.23790016,101410.0,101380.0,0.21858756]
[1762297442001,0.19723874,101400.0,101380.0,0.32087078]
[1762297442207,0.25505143,101420.0,101400.0,0.19723865]
[1762297442408,0.21137145,101420.0,101400.0,0.25052865]
[1762297442616,0.01417169,101420.0,101410.0,0.91971661]
[1762297442816,0.00068169,101420.0,101410.0,1.18658581]
[1762297443514,0.00068169,101420.0,101410.0,0.6068692]
[1762297443728,0.00028,101440.0,101430.0,0.19718032]
[1762297443934,0.00042445,101440.0,101430.0,0.36131]
[1762297444141,0.00042445,101440.0,101430.0,0.34]
[1762297444381,0.00042445,101440.0,101430.0,1.11689693]
[1762297444663,0.19718032,101430.0,101410.0,0.01636]
[1762297444914,0.00042445,101440.0,101430.0,0.21849032]
[1762297445115,0.00042445,101440.0,101430.0,0.79820693]
[1762297445364,0.00042445,101440.0,101430.0,0.83018693]
[1762297445773,0.00042445,101440.0,101430.0,0.25047032]
[1762297445988,0.00042445,101440.0,101430.0,1.17018693]
[1762297446191,0.00542445,101440.0,101430.0,1.17378992]
[1762297446475,0.19758533,101440.0,101430.0,0.91971661]
[1762297446619,0.00142445,101440.0,101430.0,0.94102661]
[1762297446823,0.00042445,101440.0,101430.0,1.17378992]
[1762297447028,0.19758533,101440.0,101430.0,0.9766096]
[1762297447232,0.19718032,101430.0,101420.0,0.82251637]
[1762297447454,0.19718032,101430.0,101420.0,0.24279976]
[1762297447659,0.19758533,101440.0,101420.0,0.70014298]